[Event "2nd Serbia Open Masters 2022"]
[Site "Novi Sad"]
[Date "2022.07.02"]
[Round "5.47"]
[White "Krasteva, Beloslava"]
[Black "Assaubayeva, Bibisara"]
[Result "0-1"]
[ECO "E71"]
[WhiteElo "2268"]
[BlackElo "2439"]
[Annotator "TA"]
[PlyCount "78"]
[EventDate "2022.06.28"]
[EventType "swiss"]
[EventCountry "SRB"]
[SourceTitle "playchess.com"]
[Source "ChessBase"]
[SourceQuality "1"]
[TimeControl "40/5400+30:900+30"]

{[%evp 10,78,36,20,31,43,41,37,44,26,52,39,41,28,42,33,42,47,37,40,24,45,33,39,31,-39,-35,-164,-159,-160,-161,-153,-155,-125,-135,-1556,-1511,-29986,-1247,-1174,-1166,-1060,-644,-637,-627,-627,-635,-618,-593,-670,-652,-578,-533,-627,-571,-908,-440,-440,-424,-421,-418,-393,-379,-716,-701,-5397,-5397,-2181,-2047,-29994,-29995]} 1. d4 {[%emt 0:00:07]} Nf6 {[%emt 0:00:06]} 2. c4 {[%emt 0:00:04]} g6 {[%emt 0:00:08]} 3. Nc3 {[%emt 0:00:06]} Bg7 {[%emt 0:00:07]} 4. e4 {[%emt 0:00:04]} d6 {[%emt 0:00:06]} 5. h3 {[%emt 0:00:08]} O-O {[%emt 0:00:05]} 6. Be3 {[%emt 0:00:05]} Nc6 {[%emt 0:00:46] E71: King's Indian: 4 e4 d6 5 h3.} 7. d5 {[%emt 0:01:08]} Ne5 {[%emt 0:00:07]} 8. f4 {[%emt 0:00:34]} Ned7 {[%emt 0:00:04] White is slightly better.} 9. g4 {[%emt 0:00:25]} c6 {[%emt 0:00:05]} 10. Nf3 {[%emt 0:00:38]} cxd5 {[%emt 0:01:29]} 11. cxd5 {[%emt 0:03:06]} b6 {[%emt 0:00:03]} 12. Bg2 {[%emt 0:01:39]} Ba6 {[%emt 0:01:02]} 13. Qc2 $1 {[%emt 0:00:20]} Nc5 {[%emt 0:00:45] [#]} 14. O-O-O $146 {[%emt 0:00:30]} ({Predecessor:} 14. Rd1 Rc8 15. Nd4 Bb7 16. O-O e6 17. Nc6 Bxc6 18. dxc6 Qe7 19. b4 Na6 20. b5 {½-½ (55) Krasteva,B (2305)-Papaioannou,D (1924) Veliko Gradiste 2021}) 14... Ncxe4 $1 {[%emt 0:00:23]} 15. Nxe4 {[%emt 0:02:28]} Rc8 $1 {[%emt 0:00:00]} (15... Nxe4 $2 16. Qxe4 Bb7 17. f5 $18) 16. Nc3 {[%emt 0:02:22] Nd4 is the strong threat.} Bc4 $1 {[%emt 0:00:02]} 17. Bd4 {[%emt 0:29:37]} (17. Nd4 $14 Nxd5 18. Bxd5 Bxd5 19. Rh2 (19. Nxd5 Rxc2+ 20. Nxc2 e6 $11)) 17... b5 $1 $15 {[%emt 0:01:59][%cal Bb6b5,Bb5b4][%mdl 32]} 18. Bxf6 {[%emt 0:12:15] Black converts the advantage convincingly.} (18. Bxa7 $2 b4 19. Nd2 Bxa2 $19) ({White should try} 18. Nd2 $15 Bxa2 19. Nb3 (19. Bxa7 $2 b4 $19)) 18... Bxf6 $19 {[%emt 0:03:53]} 19. Nd4 {[%emt 0:03:55] [#]} b4 $1 {[%emt 0:09:13]} 20. Nc6 {[%emt 0:00:53]} Rxc6 {[%emt 0:01:04]} 21. dxc6 {[%emt 0:00:09]} bxc3 {[%emt 0:00:04]} 22. Qa4 $2 {[%emt 0:10:10][%mdl 8192] [#]} (22. Bd5 $17 Bxd5 23. Rxd5) 22... Qb6 $1 {[%emt 0:01:46][%csl Gc3,Gf6][%cal Rb6b2]} 23. bxc3 {[%emt 0:08:41] [#]} (23. Rd2 cxd2+) 23... Qe3+ {[%emt 0:04:35]} (23... Rb8 $142 $1 24. Qb4 (24. Qc2 Qe3+) 24... Qe3+ 25. Rd2 Rxb4 26. cxb4 Be2 27. Be4 Bc3 28. Kb1 Qxd2 29. Bc2 Bd3 30. Rc1 Bd4 31. a4 Qxb4+ 32. Ka2 Qb2#) 24. Rd2 {[%emt 0:00:19]} Bxc3 {[%emt 0:00:53][%mdl 64] Pin. This bishop pair is nice.} 25. Rhd1 {[%emt 0:03:40]} d5 {[%emt 0:06:00]} 26. c7 {[%emt 0:03:32] Against Rb8} Bxd2+ {[%emt 0:03:20]} 27. Rxd2 {[%emt 0:00:02]} Qc5 {[%emt 0:00:37] And now ...Bb3+ would win.} 28. Qc2 {[%emt 0:08:00][%cal Og2d5] Prevents Bb3. Threatens to win with Bxd5!} e6 {[%emt 0:03:05]} 29. Bf1 {[%emt 0:06:11]} Qxc7 {[%emt 0:01:45]} 30. Bxc4 {[%emt 0:00:04]} dxc4 {[%emt 0:00:15][%mdl 4096] Endgame KQR-KQR} ({Stronger than} 30... Qxc4 31. Qxc4 dxc4 32. Kc2 $17) 31. Qe4 {[%emt 0:01:31]} Qc5 {[%emt 0:00:55]} 32. Kc2 {[%emt 0:01:53]} c3 {[%emt 0:01:23]} (32... Rb8 $142 33. Rd4 h6 34. Rxc4 Qf2+ 35. Kd3 Rb2 36. Rc8+ Kh7) 33. Qd4 {[%emt 0:01:18]} Qa3 {[%emt 0:00:22] ( -> ...Qb2+)} 34. Qxc3 {[%emt 0:00:23]} Qxa2+ {[%emt 0:00:13]} ({Avoid the trap} 34... Qa4+ $2 35. Kb1 $19) 35. Kc1 {[%emt 0:00:31]} Qa6 {[%emt 0:00:09] Strongly threatening ...Rc8.} 36. Qd3 $2 {[%emt 0:01:06]} (36. Qc7) 36... Qa1+ {[%emt 0:00:19]} 37. Kc2 {[%emt 0:00:28]} Rc8+ {[%emt 0:00:06]} 38. Kb3 {[%emt 0:00:06]} Rb8+ {[%emt 0:00:08]} 39. Kc4 {[%emt 0:00:51]} Qa4+ {[%emt 0:00:14] Weighted Error Value: White=1.07/Black=0.42} 0-1

[Event "2nd Serbia Open Masters 2022"]
[Site "Novi Sad"]
[Date "2022.07.02"]
[Round "5.48"]
[White "Vignesh N R"]
[Black "Ram Aravind L N"]
[Result "1/2-1/2"]
[ECO "C07"]
[WhiteElo "2427"]
[BlackElo "2116"]
[Annotator "TA"]
[PlyCount "168"]
[EventDate "2022.06.28"]
[EventType "swiss"]
[EventCountry "SRB"]
[SourceTitle "playchess.com"]
[Source "ChessBase"]
[SourceQuality "1"]
[TimeControl "40/5400+30:900+30"]

{[%evp 23,168,15,21,19,28,17,9,4,27,7,9,0,30,0,0,0,23,13,27,33,85,15,152,145,153,145,145,146,143,133,137,132,133,132,132,132,133,140,133,122,116,122,116,121,116,116,164,116,124,124,124,117,124,118,122,133,127,120,133,133,124,113,154,158,154,150,141,141,252,191,204,173,193,0,144,110,133,50,50,41,61,14,70,74,72,8,10,0,14,0,0,0,0,0,0,0,0,0,17,0,0,0,0,0,0,0,0,0,0,0,0,0,0,0,0,0,0,0,0,0,0,0,0,0,0,0,0,0,0,0,0,0,0,0,0,0,0,0,0,0,0,0,0,0,0,0,0]} 1. e4 {[%emt 0:00:09]} e6 {[%emt 0:00:45]} 2. d4 {[%emt 0:00:08]} d5 {[%emt 0:00:05]} 3. Nd2 {[%emt 0:00:46]} c5 {[%emt 0:00:10]} 4. exd5 {[%emt 0:00:52]} Qxd5 {[%emt 0:00:10]} 5. Ngf3 {[%emt 0:00:19]} cxd4 {[%emt 0:00:09]} 6. Bc4 {[%emt 0:00:07]} Qd6 {[%emt 0:00:17]} 7. O-O {[%emt 0:00:23]} Nf6 {[%emt 0:00:09]} 8. Nb3 {[%emt 0:00:17]} Nc6 {[%emt 0:00:24]} 9. Nbxd4 {[%emt 0:00:31]} Nxd4 {[%emt 0:00:08]} 10. Nxd4 {[%emt 0:00:03]} Be7 {[%emt 0:01:00]} 11. c3 {[%emt 0:01:32]} O-O {[%emt 0:00:32]} 12. Qf3 {[%emt 0:02:42]} Qc7 {[%emt 0:00:25]} 13. Bb3 {[%emt 0:04:41] C07: French Tarrasch: 3...c5, 4 Ngf3 and 4 exd5 Qxd5.} a5 $1 {[%emt 0:00:42][%mdl 4] is now more promising than 13...Bd7.} 14. a4 {[%emt 0:05:19]} Bd7 {[%emt 0:00:35]} 15. Re1 {[%emt 0:04:07]} Qb6 {[%emt 0:02:06]} 16. Bg5 {[%emt 0:12:30]} Bc6 {[%emt 0:24:48]} 17. Qh3 {[%emt 0:05:32] [#] Hoping for Bc2.} Qc5 $146 {[%emt 0:18:40]} (17... Nd5 $5 {[%cal Re7g5]} 18. Bxe7 (18. Bc2 g6 $11) 18... Nxe7 $11) ({Predecessor:} 17... Nd5 18. Bc2 g6 19. Bxe7 Nxe7 20. Rab1 Rad8 21. Qh4 Qc5 22. Re3 Rd5 23. Qf6 Rh5 {½-½ (72) Garcia Martin,M (2329)-Efroimski,M (2313) Batumi 2018}) 18. f4 {[%emt 0:26:52]} Rfd8 {[%emt 0:13:17]} 19. Rad1 {[%emt 0:00:27]} Nd5 {[%emt 0:09:15][%cal Bf6d5,Bd5e7,Be7g6,Bg6f4][%mdl 32]} (19... h6 $5 {[%cal Rh6g5]} 20. Bh4 Nd5 21. Bxe7 Qxe7 $11) 20. Bxe7 {[%emt 0:03:29]} Nxe7 {[%emt 0:09:29]} 21. Re5 {[%emt 0:05:35]} Bd5 {[%emt 0:01:52] [#]} (21... Qd6 $14) 22. Bc2 {[%emt 0:25:09] White is more active.} (22. Rh5 $1 $16) 22... f5 {[%emt 0:01:54] [#]} (22... g6 $11 {remains equal.}) 23. Qe3 $1 $16 {[%emt 0:00:00] Black must now prevent Bb3.} Ng6 {[%emt 0:07:25]} 24. Nxe6 {[%emt 0:00:00]} Qxe3+ {[%emt 0:00:03]} 25. Rxe3 {[%emt 0:00:00]} Bxe6 {[%emt 0:00:05]} 26. Rxe6 {[%emt 0:00:00]} Nxf4 {[%emt 0:00:18]} 27. Re7 {[%emt 0:00:00]} b6 {[%emt 0:02:29]} 28. Rf1 {[%emt 0:00:00]} Nd5 {[%emt 0:01:43]} 29. Re5 {[%emt 0:00:00]} Nf6 {[%emt 0:01:01]} 30. Rexf5 {[%emt 0:00:00]} ({Don't do} 30. Rfxf5 $6 Rd2 31. Bb3+ Kh8 $14) 30... Rd2 {[%emt 0:00:06]} 31. R5f2 {[%emt 0:00:00]} Rad8 {[%emt 0:00:33]} 32. Rxd2 {[%emt 0:00:00]} Rxd2 {[%emt 0:00:02][%mdl 4096] Endgame KRB-KRN} 33. Rf2 {[%emt 0:00:00]} Rd6 {[%emt 0:00:21]} 34. h3 {[%emt 0:00:00]} g5 {[%emt 0:00:35]} (34... h6 $16 {is a better defense.} 35. Kh2 Kf7 36. Bb3+ Ke7) 35. Re2 {[%emt 0:00:00]} ({Better is} 35. b4 $18) 35... Kf8 {[%emt 0:00:56]} 36. Kf2 {[%emt 0:00:00]} h6 {[%emt 0:01:07]} 37. Kf3 {[%emt 0:00:00]} Nd5 {[%emt 0:01:55]} 38. Rd2 {[%emt 0:00:00]} Rf6+ {[%emt 0:00:04]} 39. Ke4 {[%emt 0:00:00]} Nf4 {[%emt 0:01:04]} 40. Bb3 {[%emt 0:00:00]} Ke7 {[%emt 0:00:00]} 41. Rf2 {[%emt 0:02:25]} Rd6 {[%emt 0:05:14]} 42. Bc4 {[%emt 0:00:06] Prevents Nd3.} Rd1 {[%emt 0:01:21]} 43. h4 {[%emt 0:00:36]} Rg1 {[%emt 0:00:40]} 44. hxg5 {[%emt 0:03:03]} hxg5 {[%emt 0:00:09]} 45. Kf3 {[%emt 0:00:46]} ({Resist} 45. Kf5 Nxg2 46. Re2+ Kd6 $16) 45... Ra1 {[%emt 0:04:33]} (45... Re1 $16 46. g3 Nh5) 46. Bb5 {[%emt 0:01:15]} Rg1 {[%emt 0:00:08]} 47. Rd2 {[%emt 0:02:15]} Ke6 {[%emt 0:01:46]} 48. Rf2 $2 {[%emt 0:03:37]} (48. Bc4+ $18 Ke7 49. Bb5) 48... Ke5 {[%emt 0:01:02]} (48... Ke7 $1 $11) 49. Bf1 {[%emt 0:01:05]} Kf5 {[%emt 0:00:34]} 50. b4 {[%emt 0:00:39]} (50. Kg3 $16 {aiming for Kh2.} Rh1 51. Bd3+ Ke5 52. Bc2) 50... Ke5 $1 $14 {[%emt 0:02:09]} 51. bxa5 {[%emt 0:00:26]} bxa5 {[%emt 0:00:03]} 52. Bb5 {[%emt 0:02:20]} (52. c4 $14) 52... Kd5 {[%emt 0:02:36]} ({Black should try} 52... Rc1 $11) 53. Rd2+ {[%emt 0:03:52]} Kc5 {[%emt 0:00:49]} 54. c4 {[%emt 0:00:45]} (54. Rd4 $16) 54... Kb4 $11 {[%emt 0:02:00] The position is equal.} 55. g3 {[%emt 0:03:54]} Nh5 {[%emt 0:00:17]} 56. Rh2 {[%emt 0:00:04]} Nf6 {[%emt 0:00:34]} 57. Rb2+ {[%emt 0:00:47]} Kc3 {[%emt 0:01:14]} 58. Re2 {[%emt 0:00:11]} Rf1+ {[%emt 0:00:26]} 59. Kg2 {[%emt 0:00:34]} Rf5 {[%emt 0:00:11]} 60. Re7 {[%emt 0:01:32]} Rc5 {[%emt 0:01:34]} 61. Rf7 {[%emt 0:00:31]} Ne4 {[%emt 0:00:22]} 62. Kh3 {[%emt 0:01:39]} Nd6 {[%emt 0:00:49]} 63. Rg7 {[%emt 0:01:14]} Nxb5 {[%emt 0:01:50]} 64. cxb5 {[%emt 0:00:57][%cal Bc4b5,Bb5b6,Bb6b7][%mdl 32] Strongly threatening b6. KR-KR} Kb4 {[%emt 0:00:00]} 65. b6 {[%emt 0:00:52] White wants to mate with b7.} Kxa4 {[%emt 0:00:00]} 66. b7 {[%emt 0:00:19]} Rb5 {[%emt 0:00:00]} 67. Rc7 {[%emt 0:00:21] And now Rc4+ would win.} Rb6 {[%emt 0:00:46]} 68. Kg4 {[%emt 0:00:17]} Kb5 {[%emt 0:00:46]} 69. Kxg5 {[%emt 0:00:40]} Ka6 {[%emt 0:00:01]} 70. Kf5 {[%emt 0:00:46]} Rxb7 {[%emt 0:00:11]} 71. Rc1 {[%emt 0:00:08]} Rg7 {[%emt 0:00:27]} 72. g4 {[%emt 0:00:03]} Kb5 {[%emt 0:00:11]} 73. g5 {[%emt 0:00:06]} a4 {[%emt 0:00:07]} 74. Kf6 {[%emt 0:00:05]} Rg8 {[%emt 0:00:03]} 75. g6 {[%emt 0:00:07]} Kb4 {[%emt 0:00:26]} 76. Kf7 {[%emt 0:00:04]} Rxg6 {[%emt 0:01:15]} 77. Kxg6 {[%emt 0:00:06] KR-KP} Kb3 {[%emt 0:00:02]} 78. Kf5 {[%emt 0:00:06]} Kb2 {[%emt 0:00:04]} 79. Rc8 {[%emt 0:00:07]} a3 {[%emt 0:00:02]} 80. Rb8+ {[%emt 0:00:06]} Kc2 {[%emt 0:00:04]} 81. Ra8 {[%emt 0:00:04]} Kb2 {[%emt 0:00:03]} 82. Ke4 {[%emt 0:00:07]} a2 {[%emt 0:00:01]} 83. Kd3 {[%emt 0:00:10]} a1=Q {[%emt 0:00:05]} 84. Rxa1 {[%emt 0:00:02]} Kxa1 {[%emt 0:00:03] White really could win this.  Weighted Error Value: White=0.15 (very precise) /Black=0.20 (precise)} 1/2-1/2

[Event "2nd Serbia Open Masters 2022"]
[Site "Novi Sad"]
[Date "2022.07.02"]
[Round "5.49"]
[White "Nareks, Matic"]
[Black "Srihari L R"]
[Result "0-1"]
[ECO "D00"]
[WhiteElo "2221"]
[BlackElo "2404"]
[Annotator "TA"]
[PlyCount "76"]
[EventDate "2022.06.28"]
[EventType "swiss"]
[EventCountry "SRB"]
[SourceTitle "playchess.com"]
[Source "ChessBase"]
[SourceQuality "1"]
[TimeControl "40/5400+30:900+30"]

{[%evp 9,76,-7,14,0,0,0,0,0,0,0,0,0,0,0,0,0,0,0,0,0,0,-21,-28,-33,-25,-34,-36,-43,-37,-44,-40,-48,-51,-79,-67,-78,-73,-208,-143,-133,-120,-134,-128,-207,-206,-288,-96,-206,-210,-434,-431,-431,-422,-418,-407,-381,-359,-462,-461,-636,-620,-584,-570,-952,-950,-5273,-4818,-1776,-546]} 1. d4 {[%emt 0:00:09]} Nf6 {[%emt 0:02:17]} 2. Nc3 {[%emt 0:00:08]} d5 {[%emt 0:00:16]} 3. Bf4 {[%emt 0:00:08]} c5 {[%emt 0:00:17]} 4. e4 {[%emt 0:00:09]} cxd4 {[%emt 0:12:39]} 5. Qxd4 {[%emt 0:00:08]} Nc6 {[%emt 0:00:17]} 6. Bb5 {[%emt 0:00:07][%cal Re4d5] D00: 1 d4 d5: Unusual lines.} Bd7 {[%emt 0:04:03]} 7. Bxc6 {[%emt 0:00:08]} Bxc6 {[%emt 0:00:15]} 8. e5 {[%emt 0:00:07] The position is equal.} Nd7 {[%emt 0:03:12]} 9. e6 {[%emt 0:00:14]} fxe6 {[%emt 0:00:30]} 10. Nf3 {[%emt 0:00:06]} Qb6 {[%emt 0:01:10]} 11. Be5 {[%emt 0:00:11] [#]} (11. Be3 {keeps more tension.} Qxb2 12. Nxd5 Qxd4 13. Nc7+) 11... Qxd4 $146 {[%emt 0:02:38]} ({Predecessor:} 11... Nxe5 12. Qxe5 Bd7 13. O-O-O Qd6 14. Qd4 Qb6 15. Rhe1 Qxd4 16. Nxd4 Kf7 17. g3 g6 {0-1 (55) Fiorito,F (2356)-Srihari,L (2398) Chess.com INT 2022}) 12. Bxd4 {[%emt 0:00:06]} Rg8 {[%emt 0:02:38]} 13. h4 {[%emt 0:06:40]} g5 {[%emt 0:07:45]} 14. hxg5 {[%emt 0:00:07]} e5 $1 {[%emt 0:00:06]} 15. Nxe5 {[%emt 0:00:42]} Nxe5 {[%emt 0:04:50]} 16. Bxe5 {[%emt 0:00:06]} Rxg5 {[%emt 0:00:07]} 17. f4 {[%emt 0:04:06]} Rxg2 {[%emt 0:02:49]} 18. O-O-O {[%emt 0:00:16]} h6 {[%emt 0:05:31]} 19. Nxd5 {[%emt 0:13:43] [#] Black must now prevent Nc7+.} O-O-O {[%emt 0:00:59]} 20. c4 {[%emt 0:00:19]} e6 {[%emt 0:02:02]} 21. Nc7 {[%emt 0:03:33]} Rxd1+ {[%emt 0:03:51]} 22. Rxd1 {[%emt 0:00:47]} Bf3 {[%emt 0:05:05]} 23. Rh1 {[%emt 0:11:48]} (23. Rd2 $17) 23... Kd7 {[%emt 0:10:44]} 24. Rh3 {[%emt 0:04:31]} Be4 {[%emt 0:00:22]} 25. Nb5 {[%emt 0:03:26]} a6 {[%emt 0:05:07]} 26. Nd4 {[%emt 0:00:28]} (26. Re3 $17 {might work better.} Bg6 27. Nd4) 26... Bb4 $19 {[%emt 0:01:26][%cal Rg2g1] [#]} 27. Rh1 {[%emt 0:02:59] Against Rg1+} Bd2+ {[%emt 0:00:20]} 28. Kd1 {[%emt 0:00:07]} Be3 {[%emt 0:00:37] aiming for ...Rd2+. A strong pair of Bishops.} 29. Re1 $2 {[%emt 0:01:46]} (29. Rh3 {is a better defense.} Rd2+ 30. Ke1) 29... Rd2+ {[%emt 0:00:07]} 30. Kc1 {[%emt 0:00:05]} Rd3+ {[%emt 0:00:06]} ({Not} 30... Rxd4+ 31. Rxe3 Rxc4+ 32. Kd1 $15) 31. Rxe3 {[%emt 0:00:51]} Rxe3 {[%emt 0:00:07][%mdl 4096] Endgame KRB-KBN} 32. Kd2 {[%emt 0:00:25]} Rg3 {[%emt 0:00:26]} 33. Nb3 {[%emt 0:01:32]} Bf5 {[%emt 0:00:09] Strongly threatening ...h5. Black is clearly winning.} 34. Ke2 {[%emt 0:00:38]} h5 {[%emt 0:00:53]} 35. Bf6 {[%emt 0:00:16]} Rg4 {[%emt 0:00:43] ...h4 is the strong threat.} 36. Bg5 {[%emt 0:00:39]} h4 {[%emt 0:00:13]} 37. Nd4 {[%emt 0:00:04]} h3 {[%emt 0:00:18] ( -> ...h2)} 38. Nf3 {[%emt 0:00:05]} h2 {[%emt 0:00:06] Weighted Error Value: White=0.70/Black=0.22 (precise)} (38... Rg2+ $142 39. Ke3 Rxb2) 0-1

[Event "2nd Serbia Open Masters 2022"]
[Site "Novi Sad"]
[Date "2022.07.02"]
[Round "5.50"]
[White "Chitlange Sakshi"]
[Black "Utsab Chatterjee"]
[Result "1-0"]
[ECO "D46"]
[WhiteElo "2216"]
[BlackElo "2403"]
[Annotator "TA"]
[PlyCount "87"]
[EventDate "2022.06.28"]
[EventType "swiss"]
[EventCountry "SRB"]
[SourceTitle "playchess.com"]
[Source "ChessBase"]
[SourceQuality "1"]
[TimeControl "40/5400+30:900+30"]

{[%evp 21,87,8,39,33,62,42,68,59,77,68,70,70,78,79,78,-16,-35,-23,99,98,89,0,0,-92,-92,-109,-109,-106,49,56,76,56,1001,1014,951,935,1189,1235,1206,1100,988,1064,1031,785,691,391,391,395,368,379,356,257,266,266,263,250,622,250,29993,1061,29994,29995,29995,29996,29996,1518,29997,100]} 1. d4 {[%emt 0:00:06]} d5 {[%emt 0:00:35]} 2. c4 {[%emt 0:00:09]} c6 {[%emt 0:00:17]} 3. Nf3 {[%emt 0:01:03]} Nf6 {[%emt 0:00:32]} 4. e3 {[%emt 0:01:29][%cal Be2e3,Be3e4][%mdl 32]} e6 {[%emt 0:00:20]} 5. Nc3 {[%emt 0:02:21]} Nbd7 {[%emt 0:00:12]} 6. Bd3 {[%emt 0:01:44]} Bd6 {[%emt 0:00:18]} 7. O-O {[%emt 0:00:54]} O-O {[%emt 0:00:06]} 8. e4 {[%emt 0:01:10]} dxc4 {[%emt 0:02:36]} 9. Bxc4 {[%emt 0:00:08]} e5 {[%emt 0:00:12]} 10. Bg5 {[%emt 0:03:59][%cal Bc1g5,Bg5h4,Bh4g3][%mdl 32]} h6 {[%emt 0:03:50]} 11. Bh4 {[%emt 0:01:57]} b5 {[%emt 0:08:45]} 12. Bb3 {[%emt 0:06:23] D46: Semi-Slav: 5 e3 Nbd7 6 Bd3, Black avoids the Meran.} a6 {[%emt 0:01:11]} 13. Rc1 {[%emt 0:09:42]} Bb7 {[%emt 0:10:34]} 14. Bg3 {[%emt 0:07:55][%cal Rd4e5] [#] White is slightly better.} (14. Nxe5 {keeps more tension.} Nxe5 15. Bg3 Nfd7 16. dxe5 Bxe5 17. f4) 14... Re8 $146 {[%emt 0:15:57][%cal Oe5d4]} ({Predecessor:} 14... Qb8 15. dxe5 Nxe5 16. Nxe5 Bxe5 17. Bxe5 Qxe5 18. f4 Qc5+ 19. Kh1 Qe3 20. e5 Ne4 21. Nxe4 Qxe4 {1-0 (29) Korobov,A (2687)-Kharchenko,B (2483) Moscow 2015}) 15. dxe5 {[%emt 0:09:15]} Nxe5 {[%emt 0:00:13]} 16. Nxe5 {[%emt 0:01:31]} Bxe5 {[%emt 0:00:07]} 17. Bxe5 {[%emt 0:00:19]} Rxe5 {[%emt 0:02:01]} 18. f4 {[%emt 0:01:31]} (18. Qxd8+ $1 $16 Rxd8 19. f4) 18... Qb6+ $11 {[%emt 0:02:17]} 19. Kh1 {[%emt 0:00:08]} Re7 {[%emt 0:01:30]} (19... Ree8 $1 $11 {keeps the balance.}) 20. e5 $16 {[%emt 0:04:16]} Rd8 {[%emt 0:01:40]} 21. Qe2 {[%emt 0:04:53]} (21. Qc2 $16 Nd5 22. Ne4) 21... c5 $11 {[%emt 0:01:54]} 22. Rfd1 {[%emt 0:03:27]} (22. Rcd1 $11) 22... Rd4 $17 {[%emt 0:09:06]} 23. Qf2 {[%emt 0:03:30]} Ng4 {[%emt 0:09:07]} 24. Qg3 {[%emt 0:00:30] [#]} h5 {[%emt 0:00:45]} ({Black should try} 24... c4 $1 $17 25. Bc2 (25. Qxg4 cxb3 26. Rxd4 Qxd4 $17) 25... Rxd1+ 26. Rxd1 f5) 25. h3 $1 $36 {[%emt 0:07:38][%mdl 2048] White is more active.} c4 {[%emt 0:09:33][%cal Oe7d7] Hoping for ...Red7!} 26. Bc2 {[%emt 0:02:16]} Nh6 $2 {[%emt 0:01:21][%mdl 8192] [#] Loses the game.} (26... Rxd1+ $2 27. Rxd1 (27. Nxd1 Qd4 $11) 27... Re6 28. hxg4 $18) (26... g5 $14) 27. Rxd4 $1 $18 {[%emt 0:01:32]} Qxd4 {[%emt 0:00:05]} 28. Rd1 {[%emt 0:00:28]} Qb6 {[%emt 0:01:21]} 29. Rd6 {[%emt 0:02:25]} h4 {[%emt 0:00:09]} 30. Qg5 {[%emt 0:03:22]} ({Weaker is} 30. Rxb6 hxg3 31. Nd5 Rd7 $16) 30... f6 {[%emt 0:01:25]} 31. Qg6 {[%emt 0:01:30]} Qc7 {[%emt 0:00:35]} 32. Rxf6 {[%emt 0:00:46][%csl Gc2][%cal Rg6h7]} Rf7 {[%emt 0:00:14]} 33. Qh7+ {[%emt 0:03:19]} Kf8 {[%emt 0:00:01]} 34. Qh8+ {[%emt 0:00:49]} Ke7 {[%emt 0:00:33]} 35. Rxf7+ {[%emt 0:02:58]} Kxf7 {[%emt 0:00:02]} 36. Ne4 {[%emt 0:03:22]} Bxe4 {[%emt 0:00:06]} 37. Bxe4 {[%emt 0:00:01][%mdl 4096] Endgame And now Bd5+ would win. KQB-KQN} Qd7 {[%emt 0:01:33] Inhibits Bd5+.} 38. Qa8 {[%emt 0:02:36] Threatens to win with Bc6.} Qd1+ {[%emt 0:02:24]} 39. Kh2 {[%emt 0:00:01]} Qe1 $2 {[%emt 0:00:13]} (39... Qd4 $18 40. Qb7+ Kf8 41. Qc8+ Kf7) 40. Qb7+ {[%emt 0:00:00]} Kg8 {[%emt 0:00:00]} 41. Qc8+ {[%emt 0:04:36]} Kf7 {[%emt 0:02:21]} 42. Qd7+ {[%emt 0:01:26]} Kf8 {[%emt 0:00:05]} 43. Qd8+ {[%emt 0:00:15]} Kf7 {[%emt 0:00:01]} 44. e6+ {[%emt 0:01:01] Weighted Error Value: White=0.34/Black=0.92} 1-0